Cogmind - Beta 15 @@@ ROGUE MODE // 2025.09.16 @ 17:51:17 Player: c4-BRK Result: Destroyed by JR-P8I(R) with Subdweller Machine Gun Performance ------------- Evolutions (0) 0 Regions Visited (2) 400 Robots Destroyed (13) 65 Value Destroyed (344) 344 Prototype IDs (0) 0 Alien Tech Used (0) 0 Bonus (0) 0 TOTAL SCORE: 809 Bonus ------- None Cogmind --------- Core Integrity 0/250 Matter 300/300 Energy 99/100 System Corruption 0% Temperature Cool (0) Movement Core (150) Ox2 Location -10/Subcaves Parts ------- > --- POWER (1) -------- Subdweller Power Source > --- PROPULSION (2) --- (None) > --- UTILITY (2) ------ Subdweller Optics > --- WEAPON (2) ------- (None) > --- INVENTORY (5) ---- Subdweller Power Source Wheel Subdweller Monowheel Subdweller Optics Subdweller Beam Cannon Peak State ------------ > --- POWER ------------ Subdweller Power Source > --- PROPULSION ------- Light Treads Light Treads > --- UTILITY ---------- Small Storage Unit Subdweller Optics > --- WEAPON ----------- Salvaging Laser Subdweller Beam Cannon > --- INVENTORY -------- Subdweller Power Source Wheel Subdweller Monowheel Subdweller Monowheel Subdweller Optics Medium Laser [Rating: 11] Favorites ----------- Power Subdweller Power Source Engine Subdweller Power Source Propulsion Light Treads Treads Light Treads Wheel Wheel Utility Small Storage Unit Device Subdweller Optics Storage Small Storage Unit Weapon Subdweller Beam Cannon Energy Gun Medium Laser Energy Cannon Subdweller Beam Cannon Ballistic Gun Assault Rifle Build | -11 -10 -10 ------- Run | Yrd Mat Sub Slots Evolved . | . . . Power . | . . . Propulsion . | . . . Utility . | . . . Weapon . | . . . Parts Attached 15 | 6 . 9 Power 4 | 1 . 3 Engine 4 | 1 . 3 Core . | . . . Reactor . | . . . Propulsion 4 | 2 . 2 Treads 2 | . . 2 Leg . | . . . Wheel 2 | 2 . . Hover . | . . . Flight . | . . . Utility 3 | 1 . 2 Device 2 | . . 2 Storage 1 | 1 . . Processor . | . . . Hackware . | . . . Protection . | . . . Artifact . | . . . Weapon 4 | 2 . 2 Energy Gun 2 | 1 . 1 Energy Cannon 1 | . . 1 Ballistic Gun 1 | 1 . . Ballistic Cannon . | . . . Launcher . | . . . Special Weapon . | . . . Impact Weapon . | . . . Slashing Weapon . | . . . Piercing Weapon . | . . . Special Melee Weapon . | . . . Unidentified Prototypes . | . . . Parts Lost 9 | . . 9 Power 2 | . . 2 Propulsion 3 | . . 3 Utility 1 | . . 1 Weapon 3 | . . 3 Highest Loss Streak 4 | . . 4 To Critical Strikes . | . . . Average Backups 4 | 1 3 4 Power . | . 1 . Propulsion 2 | 1 2 2 Utility . | . . . Weapon . | . . . Tool/Special . | . . . Unused Backups 2 | . . 2 Power . | . . . Propulsion 2 | . . 2 Utility . | . . . Weapon . | . . . Tool/Special . | . . . Average Slot Usage (%) 91 | . 85 93 Engine 13 | . 14 13 Treads 19 | . . 24 Wheel 7 | . 28 2 Device 8 | . . 10 Storage 13 | . 14 13 Energy Gun 13 | . 14 13 Energy Cannon 9 | . . 11 Ballistic Gun 3 | . 14 1 Peak Build Rating 11 | 6 6 11 Average Rating 8 | 3 6 9 On Entrance 4 | . 6 6 Naked Turns . | . . . Heaviest Build 22 | 12 12 22 Greatest Support 40 | 20 20 40 Greatest Overweight (x) 3 | 3 . 2 Average Overweight (x) . | . . . Largest Inventory Capacity 8 | 8 8 8 Average Capacity 7 | 7 8 7 Most Carried 6 | 4 3 6 Average Carried 4 | 1 3 4 Final Capacity 8 | 8 8 5 Final Carried 5 | 3 3 5 Class Distribution -------------------- 64% | Mutant 35% | Scavenger-Mutant Dominant Class ---------------- Mutant | -10/Materials Mutant | -10/Subcaves Resources | -11 -10 -10 ----------- Run | Yrd Mat Sub Matter Collected 428 | 69 226 133 Remotely . | . . . Salvage Created 540 | . 103 437 Parts 33 | . 6 27 Haulers Intercepted . | . . . Recyclers Shooed 1 | . 1 . Parts Field Recycled . | . . . Retrieved Matter . | . . . Parts Self-Destructed 5 | . . 5 Prevented . | . . . Kills | -11 -10 -10 ------- Run | Yrd Mat Sub Combat Hostiles Destroyed 10 | . 3 7 Guns 8 | . 3 5 Cannons 2 | . . 2 Classes Destroyed 5 | . 3 2 Turret 2 | . . 2 Watcher 1 | . 1 . Swarmer 4 | . 1 3 Grunt 2 | . 2 . Subdweller 4 | . . 4 Best Kill Streak 2 | . 2 2 Combat Bots Only 2 | . 2 2 Max Kills in Single Turn 1 | . 1 1 Gunslinging . | . . . Exploded . | . . . Melee . | . . . Uniques/NPCs Destroyed . | . . . Combat | -11 -10 -10 -------- Run | Yrd Mat Sub Hostile Shots Fired 162 | . 12 150 Missed 72 | . 5 67 Hits 90 | . 7 83 Projectile 90 | . 7 83 Critical Strikes 3 | . . 3 Damage Taken 1222 | . 86 1136 Core 273 | . 9 264 Absorbed by Shields . | . . . Core Remaining (%) 100 | 100 . . Volleys Fired 113 | . 14 99 Largest 2 | . 2 2 Hottest 130 | . 70 130 Shots Fired 163 | . 28 135 Gun 145 | . 28 117 Cannon 18 | . . 18 Launcher . | . . . Special . | . . . Kinetic 31 | . 14 17 Thermal 132 | . 14 118 Explosive . | . . . Electromagnetic . | . . . Robot Hit Streak 35 | . 13 35 Robot Miss Streak 4 | . 2 4 Penetration Max . | . . . Secondary Targets . | . . . Shots Hit Robots 128 | . 22 106 Core Hits 34 | . 7 27 Critical Kills . | . . . Critical Parts Destroyed . | . . . Critical Strikes 6 | . 1 5 Burn 6 | . 1 5 Melee Attacks . | . . . Impact . | . . . Slashing . | . . . Piercing . | . . . Sneak Attacks . | . . . Combat Hostiles . | . . . Follow-up Attacks . | . . . Damage Inflicted 1508 | . 286 1222 Guns 1244 | . 277 967 Cannons 255 | . . 255 Explosions . | . . . Melee . | . . . Ramming 9 | . 9 . Kinetic 295 | . 115 180 Thermal 1204 | . 162 1042 Explosive . | . . . Electromagnetic . | . . . Impact . | . . . Slashing . | . . . Piercing . | . . . Highest Corruption . | . . . Average Corruption . | . . . Corruption Purged . | . . . Corruption Blocked . | . . . Overload Shots . | . . . Overflow Damage . | . . . Projectiles . | . . . Explosions . | . . . Melee . | . . . Knockbacks . | . . . Impact . | . . . Kinetic . | . . . Secondary . | . . . Self-Inflicted Damage 4 | . 4 . Shots . | . . . Rammed 3 | . 3 . Targets Rammed 3 | . 3 . Kicked . | . . . Crushed . | . . . Highest Temperature 257 | . 105 257 Average Temperature 46 | . 44 48 Received Heat Transfer 690 | . 42 648 Siege Activations . | . . . Martial Activations . | . . . Shielding Activations . | . . . Robots Disrupted . | . . . Combat Hostiles . | . . . Robots Corrupted . | . . . Combat Hostiles . | . . . Parts Fried . | . . . Impact Corruptions . | . . . Robots Melted . | . . . Combat Hostiles . | . . . Parts Melted 4 | . . 4 Heat Transferred 3522 | . 555 2967 Parts Sabotaged . | . . . Parts Stolen . | . . . Parts Stripped . | . . . Power Chain Reactions . | . . . Alert | -11 -10 -10 ------- Run | Yrd Mat Sub Maximum Alert Level . | . . . Low Security (%) 100 | 100 100 . Level 1 . | . . . Level 2 . | . . . Level 3 . | . . . Level 4 . | . . . Level 5 . | . . . High Security . | . . . Max Security . | . . . Peak Influence 50 | . 50 . Initial . | . . . Average 8 | . 10 . Influence Increases 247 | . 87 160 Destroy 0b10 Robot/C 160 | . 60 100 Destroy 0b10 Robot/NC 5 | . 5 . Destroy Leader 22 | . 22 . Lose Combat Pursuer 60 | . . 60 Influence Decreases 235 | . 87 148 Time Decay 185 | . 87 98 Lost Part 50 | . . 50 Squads Dispatched 4 | . 4 . Investigation 1 | . 1 . Extermination . | . . . Reinforcement 3 | . 3 . Assault . | . . . Garrison . | . . . Intercept . | . . . Searches Triggered . | . . . Construction Impeded . | . . . Haulers Reinforced . | . . . Active Scanning Responses . | . . . Cargo Convoy Interrupts . | . . . Stealth | -11 -10 -10 --------- Run | Yrd Mat Sub Distress Signals 1 | . 1 . Communications Jammed . | . . . Distress Signals . | . . . Times Spotted 21 | . 10 11 Peak Tracking Total 3 | . 3 3 Tactical Retreats 2 | . . 2 Traps | -11 -10 -10 ------- Run | Yrd Mat Sub Traps Triggered . | . . . Indirectly . | . . . Trap Hack Attempts . | . . . Triggered . | . . . Disarmed . | . . . Reprogrammed . | . . . Reused . | . . . Traps Extracted . | . . . Installed . | . . . Triggered . | . . . Machines | -11 -10 -10 ---------- Run | Yrd Mat Sub Machines Disabled . | . . . Max in Single Turn . | . . . Machines Repaired . | . . . Machines Dismantled . | . . . Machines Sabotaged . | . . . Overloaded Fab Kills . | . . . Hacking | -11 -10 -10 --------- Run | Yrd Mat Sub Machines Accessed . | . . . Terminals . | . . . Fabricators . | . . . Repair Stations . | . . . Recycling Units . | . . . Scanalyzers . | . . . Garrison Access . | . . . Total Hacks . | . . . Successful . | . . . Failed . | . . . Catastrophic . | . . . Database Lockouts . | . . . Manual . | . . . Terminals . | . . . Fabricators . | . . . Repair Stations . | . . . Recycling Units . | . . . Scanalyzers . | . . . Garrison Access . | . . . Terminal Hacks . | . . . Fabricator Hacks . | . . . Repair Station Hacks . | . . . Recycling Unit Hacks . | . . . Scanalyzer . | . . . Garrison Access Hacks . | . . . Unauthorized Hacks . | . . . Terminals . | . . . Fabricators . | . . . Repair Stations . | . . . Recycling Units . | . . . Scanalyzers . | . . . Garrison Access . | . . . Data Cores Recovered . | . . . Used . | . . . Hacking Detections . | . . . Full Trace Events . | . . . Feedback Events . | . . . Feedback Blocked . | . . . Robot Schematics Acquired . | . . . Robots Built . | . . . Authchips . | . . . Time . | . . . Total Robot Build Rating . | . . . Part Schematics Acquired . | . . . Parts Built . | . . . Authchips . | . . . Time . | . . . Total Part Build Rating . | . . . Parts Repaired . | . . . Time . | . . . Parts Recycled . | . . . Recycled Matter . | . . . Retrieved Matter . | . . . Retrieved Components . | . . . Parts Scanalyzed . | . . . Part Schematics Acquired . | . . . Parts Damaged . | . . . Bothacking | -11 -10 -10 ------------ Run | Yrd Mat Sub Used RIF Installer . | . . . Robots Hacked . | . . . Non-combat . | . . . Combat . | . . . Robot Hacks Applied . | . . . Relay Couplers Released . | . . . Fabnet Peak Effective % . | . . . Robots Rewired . | . . . Allies Hacked . | . . . Hacks Repelled . | . . . Allies | -11 -10 -10 -------- Run | Yrd Mat Sub Total Allies . | . . . Largest Group . | . . . Highest-Rated Group . | . . . Highest-Rated Ally . | . . . Total Orders . | . . . Ally Attacks . | . . . Total Damage . | . . . Kills . | . . . Allies Corrupted . | . . . Allies Melted . | . . . Intel | -11 -10 -10 ------- Run | Yrd Mat Sub Active Infowar (turns) 742 | . . 742 Optics 742 | . . 742 Robot Analysis Total . | . . . Derelict Logs Recovered 1 | . . 1 Drone Launches . | . . . Drone Recoveries . | . . . Exploration | -11 -10 -10 ------------- Run | Yrd Mat Sub Turns Passed 1700 | 72 346 1282 Spaces Moved 860 | 53 171 636 Core 30 | 29 . 1 Treads 606 | . . 606 Legs . | . . . Wheels 224 | 24 171 29 Hover . | . . . Flight . | . . . Fastest Speed 50 | 50 80 80 Average Speed 138 | 107 80 156 Slowest Speed 200 | 200 80 160 Overloaded Moves . | . . . Propulsion Burnouts . | . . . Robots Hopped . | . . . Potential Cave-ins . | . . . Cave-ins Triggered . | . . . Exploration Rate (%) 22 | 3 30 34 Regions Visited 2 Branch Regions 1 Pre-discovered Areas . | . . . Known Exits Taken . | . . . Unknown Exits Taken 2 | 1 1 . Scrap Searched . | . . . Spaces Dug . | . . . Terrain Destroyed 3 | . . 3 Melee . | . . . Projectile 3 | . . 3 AOE . | . . . Terrain Rammed . | . . . Walls Destroyed . | . . . Machines Disabled . | . . . Actions | -11 -10 -10 --------- Run | Yrd Mat Sub Total 1231 | 67 351 813 Wait 224 | . 164 60 Move 858 | 52 170 636 Hop . | . . . Pick Up 17 | 9 . 8 Fast Attach . | . . . Attach 11 | 6 . 5 Detach . | . . . Swap 5 | . . 5 Drop . | . . . Fire 113 | . 14 99 Melee . | . . . Ram 3 | . 3 . Kick . | . . . Crush . | . . . Escape Stasis . | . . . Rewire . | . . . Trap . | . . . Miscellaneous . | . . . Route ------- -11/Scrapyard -10/Materials (discovered 4 exits: [*Mat x2] / [*Min] / [*Sub]) -10/Subcaves (discovered 1 exit: *Rec) History --------- Turn | Location | Event 7 | -11/Scrapyard | Discovered new exit (range 15) 73 | -11/Scrapyard | Entered Materials 74 | -10/Materials | Met a group of wandering Federalists 174 | -10/Materials | Lost 3 allies 229 | -10/Materials | Discovered new exit (range 8) 279 | -10/Materials | Discovered new exit (range 15) 302 | -10/Materials | Build established: Mutant 356 | -10/Materials | Discovered new exit (range 9) 381 | -10/Materials | Discovered new exit (range 6) 419 | -10/Materials | Entered Subcaves 420 | -10/Subcaves | Continued accompanying wandering Federalists (2) 443 | -10/Subcaves | Identified exit to Recycling 521 | -10/Subcaves | Core integrity fell below 50% 1327 | -10/Subcaves | Build established: Scavenger-Mutant 1452 | -10/Subcaves | Core integrity fell below 20% 1697 | -10/Subcaves | Lost 4 parts (1n1u2w) 1701 | -10/Subcaves | Destroyed by JR-P8I(R) with Subdweller Machine Gun Last Messages --------------- Subatomizers dissect the Sub. Machine Gun. BC-IAD(u) tweaks Twisted Machinery. S-10 Pest destroyed. Lgt. Ion Engine fries itself beyond repair. S-10 Pest destroyed. Flight Unit fries itself beyond repair. S-10 Pest destroyed. Sub. Beam Cannon shoots sparks and powers down. Autobeam Turret destroyed. Flight Unit fries itself beyond repair. Autobeam fries itself beyond repair. Destroyed Autobeam. Sub. Power Source shoots sparks and powers down. Autobeam Turret destroyed. BC-IAD(u) tweaks Twisted Machinery. Med. Laser destroyed. Sml. Storage Unit destroyed. Sub. Optics shoots sparks and powers down. Salvaging Laser destroyed. Lgt. Treads destroyed. Map ----- +----------------------------------------------------+ | ###?# " ## " ##### ### ##?????? | | ##??## "" %" "###### ##?# ##??????? | | ##??# "" % # # # #### #???????? | | #??# "## " ## ##????#?? | | #?## "## "" ## #??? ##? | | #?# "###"" ### #### # #?? ## | | ##?## "#### "#?#####??# ### #? | | #???# """#?## ##????????# ### ## | | ##??## """#??## #?????????# ## ## ## | | #???# "" #???###????????## #####? | | ????# ""##??????????????# #????# | | ????## #???????????????### ##### | | ?????### #?????????????????##### | | ????????##???????#######???????### | | ????????????????## ###???????# ## | | ????????????????# ##??????## ## ##? | | ????????????????# ""#???????# #?? ###??? | | ????????????????# """ ########## ##?##?????? | | ?????????????????# "" ## ##????????? | | ?????????????????## "" """ #????????? | | ??????????????????#"" " " #????????? | | ????????????####### """ R ###??????? | | ???????????## ## # #### ### #??????? | | ???????????# ##### ###?## #??????? | | ???????###?# ### ##????# ##??????? | | ??????## ### ## @ ##?????# #???????? | | ?????## ## ### #?????## #???????? | | ????## ###?## ######?##### #???????? | | ????# ####?### #??????# ##???????? | | ????# #???## ##??????# ##????????? | | ???## ##### #????####???????# ##?????????? | | ??## ##???## #??????????????## #??????????? | | ??# # #?????# #??????????????# #??????????? | | ??# # ##????# #??????????????# #??????????? | | ??# # ##??## #??????????????# =####??????????? | | ??##%%## #### #??????????????# #?????????????? | | ??#" ## ###########?????# #?????????????? | | ??## ### # # ## #?????# #?????????????? | | ?## #?????## #?????????????? | | ?# ##?????# #?????????????? | | ?## " ###### ### #????? ?????????????? | | ??# ####% ####??###?# ##????? ?????????????? | | ??####" "#?????## #???? ?????????????? | | ?????# #?????# #???? ????????????? | | ?????# ##????# #????# = ????????????? | | ?????#" % % ""#????# #????## ????????????? | | ?????#" " " "##????## ###???## ???????????? | | ?????#"""" """"#?????## # ####??# ???????????? | | ?????#####>#####?????# #???# ???????????? | | ?????????###?????????## " """ #???# ???????????? | +----------------------------------------------------+ Best States ------------- Heat Dissipation 25 Energy Generation 15 Energy Capacity 200 Matter Stores 300 Matter Capacity 300 Sight Range 21 Terrain Scan Density 10 Evasion (%) 44 Recoil Reduction 2 Item Schematics ----------------- None Robot Schematics ------------------ None Fabricated ------------ Nothing Repaired ---------- Nothing Alien Tech Used ----------------- None Achievements -------------- None Challenges ------------ None Game ------ Seed LightningBehemothInjector Manual? 0 Play Time 00:12:57 Cumulative 21.2 hours Start 2025.09.16 @ 16:25:55 End 2025.09.16 @ 17:51:17 Sessions 1 Manual Loads 0 Difficulty Rogue Special Mode None Game No. 24 Rogue 3 Adventurer 21 Explorer 0 Win Type - Total 1 Types 0/0/0/0/0/0/0/1/0/0 Lore% 45 Gallery% 31 Achievement% 37 Wizard Run 0 Options --------- Layout 1 ASCII 0 Keyboard 0 Movement Mouse Keybinds 0 Fullscreen 2 Font 24/Smallcaps Map View 50x35 Zoom Use 0% Tactical HUD 0 Map Filters NONE Filters NONE Steam 1 RUN: d3d8af03-ac74-498d-aba5-3bf81b21d017